bitfinex/quotes_ETHUSD_20260207
["timestamp","ask_amount","ask_price","bid_price","bid_amount"]
[1770448170127,1e-08,2031.6,2030.1,5.76209345]
[1770448170325,1e-08,2031.6,2030.4,5.14074141]
[1770448170496,1e-08,2031.6,2030.5,3.95407414]
[1770448170698,1e-08,2031.6,2030.5,0.51407414]
[1770448170926,1e-08,2031.6,2030.5,1.23117692]
[1770448171431,0.05588493,2032.0,2030.5,1.23117692]
[1770448171633,0.05588493,2031.7,2030.5,1.23117692]
[1770448171836,0.05588493,2032.0,2030.5,1.23117692]
[1770448172425,0.05588493,2032.0,2029.2,0.001]
[1770448172426,5.15571066,2031.1,2029.2,0.001]
[1770448172629,0.05588493,2031.7,2029.2,0.001]
[1770448172630,5.15571066,2031.5,2029.2,0.001]
[1770448172919,0.05588493,2031.1,2029.2,4.92893269]
[1770448173234,5.09982573,2031.5,2030.0,0.05588493]
[1770448173539,5.15495937,2032.0,2030.0,0.05588493]
[1770448173540,6.33008014,2032.1,2030.3,0.05588493]
[1770448173730,2.43576682,2032.0,2030.3,0.05588493]
[1770448173909,2.43576682,2032.0,2030.4,0.05588493]
[1770448174111,6.33008014,2032.1,2030.4,0.05588493]
[1770448174340,1.23025441,2032.1,2030.4,0.05588493]
[1770448174835,1.18013334,2032.3,2030.5,1.23122383]
[1770448175835,1.23601827,2032.3,2030.5,1.23122383]
[1770448176039,0.1024,2032.2,2030.5,1.23122383]
[1770448176243,0.05588493,2031.7,2030.6,0.61561192]
[1770448176426,0.05588493,2031.6,2029.7,4.92676336]
[1770448176743,0.05588493,2031.6,2029.3,4.92768024]
[1770448176744,1.23061777,2031.5,2029.3,4.92768024]
[1770448176941,1.23061777,2031.5,2029.3,4.98356517]
[1770448177260,5.11597619,2031.3,2029.4,0.5]
[1770448177545,0.51159762,2031.2,2029.4,0.5]
[1770448177720,1.23061777,2031.5,2029.6,0.05588493]
[1770448178321,1.23061777,2031.5,2029.3,0.05588493]
[1770448178521,1.23061777,2031.5,2029.6,0.05588493]
[1770448178721,1.23040972,2031.9,2029.7,9.72553931]
[1770448178926,0.05588493,2031.8,2029.7,6.42460931]
[1770448179146,1.1267888,2031.8,2029.8,1.13514458]
[1770448179328,0.05588493,2031.5,2029.8,1.13514458]
[1770448179728,5.11597619,2031.5,2029.8,1.13514458]
[1770448179929,0.05588493,2031.4,2029.8,1.13514458]
[1770448180423,5.11597619,2031.4,2029.8,1.13514458]
[1770448180630,5.06009126,2031.4,2029.8,1.13514458]
[1770448180833,4.92215797,2031.7,2029.9,1.23158776]
[1770448181153,1.23049662,2031.7,2029.9,1.23158776]
[1770448181318,1.23049662,2031.7,2030.0,0.05588493]
[1770448181517,9.71216091,2031.9,2030.0,0.79078176]
[1770448181726,1.23043606,2031.8,2030.0,0.79078176]
[1770448182121,5.07864979,2032.4,2030.6,0.05588493]
[1770448182122,5.06009126,2032.4,2030.6,0.05588493]
[1770448182317,0.33091757,2032.5,2030.6,0.05588493]
[1770448182318,0.33091757,2032.5,2031.2,0.05588493]
[1770448182551,0.33091757,2032.5,2031.2,0.57517495]
[1770448182721,4.9165885,2034.0,2031.9,1.23037551]
[1770448182921,5.11597619,2033.9,2031.9,1.23037551]
[1770448183415,5.06009126,2033.9,2031.9,1.23037551]
[1770448183617,5.06009126,2033.9,2032.2,0.05588493]
[1770448183818,0.99766798,2033.8,2032.2,0.05588493]
[1770448184045,0.99766798,2033.8,2031.9,1.28626044]
[1770448184225,4.9165885,2034.0,2032.2,5.1929002]
[1770448184428,1.22862197,2034.8,2032.8,5.1929002]
[1770448184759,5.06009126,2035.2,2033.4,0.05588493]
[1770448184760,1.23044086,2035.1,2033.4,0.05588493]
[1770448185428,1.23044086,2035.1,2033.7,0.05588493]
[1770448185429,0.002,2035.1,2033.7,0.05588493]
[1770448185624,0.002,2035.1,2033.4,0.05588493]
[1770448185819,0.002,2035.1,2033.4,1.18993913]
[1770448186226,0.002,2035.1,2033.4,1.1340542]
[1770448186531,0.05788493,2035.1,2033.4,1.1340542]
[1770448186733,1.22862197,2034.8,2032.9,1.22977027]
[1770448187053,1.22862197,2034.8,2032.7,1.22988964]
[1770448187054,5.11597619,2034.5,2032.7,1.22988964]
[1770448187227,0.1024,2034.6,2032.8,1.28569657]
[1770448187428,1.22862197,2034.8,2032.8,1.28569657]
[1770448188856,4.91648791,2034.9,2033.2,1.22958882]
[1770448189054,0.98309758,2034.8,2033.4,0.05588493]
[1770448189257,0.002,2034.9,2033.7,0.05588493]
[1770448189461,0.002,2034.9,2033.8,0.05588493]
[1770448189661,0.002,2035.1,2034.4,0.05588493]
[1770448189825,10.0256258,2036.9,2034.7,0.05588493]
[1770448189826,4.91064346,2036.4,2034.7,0.05588493]
[1770448190028,1.22741555,2036.8,2035.3,0.05588493]
[1770448190227,1.22687343,2037.7,2035.9,0.05588493]
[1770448190421,1.22687343,2037.7,2035.3,0.05588493]
[1770448190666,0.05588493,2037.3,2035.3,0.05588493]
[1770448190829,1.22735529,2036.9,2035.0,0.05588493]
[1770448191026,1.22735529,2036.9,2034.5,10.05211529]
[1770448191027,0.05588493,2036.4,2034.5,1.2287808]
[1770448191227,0.05588493,2036.4,2033.6,4.91732617]
[1770448191228,0.05588493,2035.7,2033.6,4.91732617]
[1770448191455,0.05588493,2035.6,2033.7,0.05588493]
[1770448191755,5.16249126,2035.4,2033.7,1.22928306]
[1770448191955,0.1024,2035.2,2033.4,0.05588493]
[1770448192258,0.1024,2035.2,2032.8,0.05588493]
[1770448192259,0.05588493,2034.9,2032.7,0.05588493]
[1770448192434,0.2335703,2034.8,2033.2,1.22958018]
[1770448192639,0.15828493,2035.0,2033.2,1.22953922]
[1770448192856,0.15828493,2035.0,2032.7,1.0671708]
[1770448192857,1.2285616,2034.9,2032.8,1.22983077]
[1770448193055,1.2285616,2034.9,2033.3,0.05588493]
[1770448193525,0.2335703,2034.8,2032.8,1.22983077]
[1770448193726,0.64322632,2034.8,2032.9,0.72163247]
[1770448193954,0.1024,2034.7,2032.9,0.72163247]
[1770448194159,0.2335703,2034.4,2032.9,0.72163247]
[1770448194474,0.1024,2034.5,2032.8,0.05588493]
[1770448194657,5.06009126,2034.7,2033.1,0.05588493]
[1770448194958,1.22874275,2034.6,2033.1,0.05588493]
[1770448195161,1.22874275,2034.6,2033.4,0.05588493]
[1770448195392,0.61437138,2034.5,2033.4,0.05588493]
[1770448195545,1.22874275,2034.6,2033.4,0.05588493]
[1770448195737,0.64322632,2034.8,2033.7,0.05588493]
[1770448195738,1.87188666,2034.8,2033.7,0.05588493]
[1770448195939,1.2286001,2034.9,2033.7,0.05588493]
[1770448196675,1.2282598,2035.4,2034.0,0.05588493]
[1770448197076,6.28810972,2035.9,2034.3,0.05588493]
[1770448197371,1.22801846,2035.9,2034.3,0.05588493]
[1770448197945,1.22801846,2035.9,2034.1,1.22904478]
[1770448198167,1.22801846,2035.9,2034.0,1.28494882]
[1770448198361,1.22801846,2035.9,2034.1,0.62013844]
[1770448198362,0.61401595,2035.7,2034.1,0.62013844]
[1770448198746,0.61401595,2035.7,2034.3,0.05588493]
[1770448198954,0.61401595,2035.7,2034.2,1.22898436]
[1770448198955,1.22813912,2035.6,2034.2,1.22898436]
[1770448199158,1.22813912,2035.6,2034.3,0.05588493]
[1770448199473,1.22813912,2035.6,2034.3,0.6759656]
[1770448200347,0.1024,2035.5,2033.4,0.05588493]
[1770448200576,5.16249126,2035.5,2033.7,1.28513165]
[1770448200877,5.16249126,2035.5,2033.5,4.9174375]
[1770448200878,5.16249126,2034.8,2033.5,1.22940208]
[1770448201066,5.16249126,2034.8,2033.2,1.2295466]
[1770448201067,1.74493149,2034.7,2033.2,1.2295466]
[1770448201382,1.74493149,2034.7,2033.4,1.2294567]
[1770448201579,5.06009126,2035.9,2034.2,0.05588493]
[1770448201780,1.22801846,2035.8,2033.8,0.05588493]
[1770448201950,1.22801846,2035.8,2034.3,0.05588493]
[1770448202404,6.28810972,2035.8,2033.8,5.085392]
[1770448202683,6.28810972,2035.8,2034.0,0.05588493]
[1770448202852,5.16249126,2035.7,2033.7,0.05588493]
[1770448203049,1.2282598,2035.4,2033.8,1.22922607]
[1770448203252,1.2282598,2035.4,2034.0,0.05588493]
[1770448203459,1.22795815,2035.9,2034.6,0.05588493]
[1770448203866,1.22777723,2036.2,2034.9,0.05588493]
[1770448204286,1.22759636,2036.5,2035.3,0.05588493]
[1770448204490,0.61379818,2036.4,2035.0,0.05588493]
[1770448205167,1.22771693,2036.3,2035.1,1.22844086]
[1770448205367,1.22771693,2036.3,2035.3,0.05588493]
[1770448205599,4.90985833,2036.8,2035.3,0.05588493]
[1770448205764,4.90871972,2037.2,2035.6,0.05588493]
[1770448205972,0.6135834,2037.1,2035.6,0.05588493]
[1770448206181,1.22711431,2037.3,2035.7,0.05588493]
[1770448206380,1.22711431,2037.3,2035.3,0.05588493]
[1770448206381,1.22711431,2037.3,2035.8,0.05588493]
[1770448206596,6.56970351,2037.3,2035.1,1.22844086]
[1770448206764,5.3425892,2036.9,2035.2,0.05588493]
[1770448206965,1.22741555,2036.8,2035.1,1.28432579]
[1770448207165,1.1479667,2036.7,2035.2,0.61983208]
[1770448207373,1.1479667,2036.7,2035.3,0.05588493]
[1770448207778,1.22741555,2036.8,2035.2,0.61983208]
[1770448208287,5.39847413,2036.5,2034.5,0.05588493]
[1770448208489,5.39847413,2036.5,2034.9,1.22855833]
[1770448208786,5.3425892,2036.5,2034.9,1.22852625]
[1770448208988,1.33005664,2036.4,2034.6,1.22874275]
[1770448209194,1.33005664,2036.4,2034.8,0.05588493]
[1770448209394,1.15832724,2036.3,2034.6,1.22874275]
[1770448209690,1.15832724,2036.3,2034.8,0.05588493]
[1770448210195,1.22765664,2036.4,2035.5,0.001]
[1770448210372,0.002,2036.1,2035.5,0.001]
[1770448211669,0.002,2036.1,2034.3,1.22888526]
[1770448211876,5.35366133,2036.1,2034.3,1.22888526]
[1770448212392,5.40754626,2036.0,2034.2,1.22896936]
[1770448212588,0.54095463,2035.9,2034.3,1.2848068]
[1770448212788,0.54095463,2035.9,2034.3,1.22892187]
[1770448212979,1.22801846,2035.8,2034.3,1.28480199]
[1770448213673,1.22801846,2035.8,2034.6,0.05588493]
[1770448214069,1.22789783,2036.0,2034.9,0.05588493]
[1770448214699,1.22986762,2036.1,2035.0,0.05588493]
[1770448214900,0.002,2036.1,2034.4,4.98168604]
[1770448215078,4.90898542,2037.1,2035.6,1.28399088]
[1770448215273,0.002,2037.4,2037.1,0.05588493]
[1770448215608,0.002,2037.4,2036.3,0.05588493]
[1770448215609,1.22907362,2037.4,2036.3,0.05588493]
[1770448216401,5.45406133,2037.3,2035.6,1.22813386]
[1770448216602,5.35166133,2037.3,2035.6,1.28401879]
[1770448216802,1.22907362,2037.4,2036.2,0.05588493]
[1770448217100,0.002,2037.4,2036.3,1.22771693]
[1770448217705,0.002,2037.4,2036.8,0.05588493]
[1770448218401,4.90823862,2038.3,2036.8,0.05588493]
[1770448218402,1.22661564,2038.2,2037.1,0.05588493]
[1770448218798,1.22661564,2038.2,2036.8,0.05588493]
[1770448218982,4.90828986,2038.3,2037.2,1.22717455]
[1770448218983,0.002,2038.3,2037.2,1.22717455]
[1770448219183,0.002,2038.3,2037.3,0.61918005]
[1770448219392,0.002,2038.3,2037.1,1.22721558]
[1770448219876,0.002,2038.3,2036.7,1.2274422]
[1770448220072,0.002,2038.3,2037.1,1.22723207]
[1770448220303,0.002,2038.3,2037.2,0.05588493]
[1770448221000,0.002,2038.3,2037.6,1.22693364]
[1770448221199,0.002,2038.3,2037.5,4.96361951]
[1770448221200,0.002,2038.3,2037.7,0.61905532]
[1770448221406,0.002,2038.3,2037.8,0.05588493]
[1770448221908,0.001,2038.3,2037.8,0.05588493]
[1770448222112,1.22618969,2038.9,2038.1,0.05588493]
[1770448222315,1.21919764,2038.9,2037.5,1.28283658]
[1770448222806,4.90417474,2039.1,2037.8,0.05588493]
[1770448222807,1.2261239,2039.0,2037.8,0.05588493]
[1770448223183,1.22591085,2039.3,2037.8,1.28266252]
[1770448223392,2.36271877,2039.3,2037.8,1.28266252]
[1770448223593,1.22591085,2039.3,2038.1,0.05588493]
[1770448223793,1.22591085,2039.3,2038.2,0.05588493]
[1770448224891,0.002,2038.7,2038.1,3.431]
[1770448225098,0.002,2038.7,2038.2,1.22657246]
[1770448225286,0.002,2038.7,2038.2,1.28245739]
[1770448225483,0.002,2038.9,2038.3,0.96197519]
[1770448225687,1.22789136,2039.4,2038.5,0.05588493]
[1770448225887,1.22781338,2039.5,2038.8,0.05588493]
[1770448226210,4.90021383,2040.8,2039.4,0.05588493]
[1770448226511,4.90021383,2040.8,2038.9,0.05588493]
[1770448226512,0.002,2039.8,2038.9,0.05588493]
[1770448226683,0.002,2039.8,2039.2,0.05588493]
[1770448227205,0.002,2039.8,2039.5,0.05588493]
[1770448227379,4.90051945,2040.9,2039.5,0.05588493]
[1770448227380,1.22476974,2041.2,2039.6,3.43]
[1770448227579,5.40754626,2042.0,2039.7,0.47116479]
[1770448227789,5.35166133,2041.6,2040.0,0.05588493]
[1770448228009,5.35166133,2041.6,2040.1,3.43]
[1770448228216,5.40754626,2041.5,2039.5,0.05588493]
[1770448228379,5.40754626,2041.5,2039.2,0.05588493]
[1770448228380,0.05588493,2041.2,2040.1,3.43]
[1770448228580,5.35166133,2041.3,2039.8,3.43]
[1770448228780,5.35166133,2041.3,2039.9,0.343]
[1770448228975,0.1024,2041.5,2040.0,3.43]
[1770448229207,0.1024,2041.7,2039.7,4.90267125]
[1770448229394,5.45406133,2041.7,2039.7,1.22566173]
[1770448229597,5.45406133,2041.7,2039.4,0.05588493]
[1770448229798,5.40754626,2041.5,2039.5,3.429]
[1770448229977,12.98613177,2041.1,2039.6,0.34848849]
[1770448230183,5.35166133,2041.2,2039.6,0.34848849]
[1770448230393,0.54075463,2041.4,2040.0,0.05588493]
[1770448230618,6.57607116,2041.8,2040.3,0.05588493]
[1770448230784,6.57607116,2041.8,2040.0,0.05588493]
[1770448230982,1.22440983,2041.8,2040.3,0.05588493]
[1770448231322,4.89697296,2042.1,2040.6,0.05588493]
[1770448231519,4.89697296,2042.1,2040.7,3.428]
[1770448231687,1.22417001,2042.2,2041.0,0.05588493]
[1770448232217,6.57583134,2042.2,2040.6,0.05588493]
[1770448232420,6.57583134,2042.2,2040.3,0.05588493]
[1770448232421,5.35166133,2042.0,2040.3,0.05588493]
[1770448232914,5.35166133,2042.0,2039.7,0.05588493]
[1770448232915,5.35166133,2041.6,2039.7,0.05588493]
[1770448233211,5.35166133,2041.4,2039.7,0.05588493]
[1770448233418,0.65762511,2041.3,2039.7,1.28154411]
[1770448234093,0.65762511,2041.3,2039.7,1.2815535]
[1770448234288,5.35166133,2041.1,2038.6,5.03757097]
[1770448234488,5.35166133,2040.7,2038.6,0.05588493]
[1770448234807,5.35166133,2040.7,2039.1,1.28190561]
[1770448235001,5.88682746,2040.6,2038.6,0.05588493]
[1770448235198,1.2251899,2040.5,2038.9,4.96046114]
[1770448235399,1.17328384,2040.5,2038.7,0.05588493]
[1770448235601,1.17328384,2040.5,2039.0,0.05588493]
[1770448235908,6.42530594,2040.5,2038.4,4.9614816]
[1770448236078,6.43814527,2040.4,2038.6,1.22632866]
[1770448236286,6.43814527,2040.4,2038.5,0.59234568]
[1770448236630,5.2520221,2040.0,2037.5,4.96381886]
[1770448236831,5.3544221,2039.8,2037.9,0.05588493]
[1770448237125,5.2520221,2039.8,2038.1,4.90652463]
[1770448237310,1.22567044,2039.7,2038.5,0.05588493]
[1770448237486,1.18612317,2040.4,2038.5,0.05588493]
[1770448237487,1.22537006,2040.2,2039.1,0.05588493]
[1770448237926,0.002,2040.3,2039.4,0.05588493]
[1770448238125,1.22731115,2040.3,2038.8,0.05588493]
[1770448238290,0.61285512,2040.2,2038.3,10.17433549]
[1770448238485,5.86487722,2040.2,2038.3,1.22651228]
[1770448238822,5.2520221,2040.0,2038.0,1.22666062]
[1770448238985,5.2520221,2040.0,2038.1,1.22659517]
[1770448239188,6.47763245,2039.8,2037.9,0.05588493]
[1770448239394,5.2520221,2039.6,2037.9,1.77894173]
[1770448239596,5.2520221,2039.6,2037.9,1.72305504]
[1770448241119,5.2520221,2039.6,2038.1,0.05588493]
[1770448241289,5.2520221,2039.6,2038.2,1.22657246]
[1770448241290,1.22579063,2039.5,2038.2,1.22657246]
[1770448241494,1.22579063,2039.5,2038.4,0.05588493]
[1770448241695,2.44381522,2039.5,2038.1,0.05588493]
[1770448241895,5.2520221,2039.4,2037.4,4.90915871]
[1770448242127,5.2520221,2039.2,2037.4,1.22805253]
[1770448242310,5.2520221,2039.2,2037.5,0.05588493]
[1770448242490,0.1024,2039.3,2037.4,0.001]
[1770448242491,0.1024,2039.0,2037.4,0.001]
[1770448242800,5.3544221,2038.8,2037.4,0.001]
[1770448243414,1.22627164,2038.7,2037.4,0.001]
[1770448243793,6.47829374,2038.7,2037.4,0.001]
[1770448243998,5.2520221,2038.5,2037.4,0.001]
[1770448245041,5.2520221,2038.1,2037.2,0.001]
[1770448245210,5.2520221,2038.1,2036.3,0.001]
[1770448245527,5.2520221,2038.1,2036.3,1.28458594]
[1770448245528,5.2520221,2037.9,2036.3,1.28458594]
[1770448246625,1.22669283,2038.0,2036.6,0.05588493]
[1770448247235,6.47871493,2038.0,2036.3,0.001]
[1770448247531,5.86536852,2037.9,2036.3,0.001]
[1770448247703,0.05588493,2037.5,2036.3,0.001]
[1770448247904,5.3544221,2036.9,2034.8,1.60188493]
[1770448248130,5.2520221,2036.6,2035.0,1.2284754]
[1770448248306,0.52520221,2036.5,2035.0,1.22847906]
[1770448248641,5.2520221,2036.3,2034.3,0.05588493]
[1770448248834,13.0420167,2036.4,2034.5,1.228784]
[1770448248835,5.3544221,2036.2,2034.5,1.228784]
[1770448249137,5.3544221,2036.2,2034.5,1.22876351]
[1770448249332,1.22783753,2036.1,2034.4,1.22886354]
[1770448249505,1.14936098,2036.0,2034.6,0.05588493]
[1770448250208,1.14936098,2036.0,2034.4,1.22886354]
[1770448250402,1.22783753,2036.1,2034.7,0.05588493]
[1770448250803,6.47985963,2036.1,2034.4,1.28474847]
[1770448251038,1.22783753,2036.1,2035.7,0.001]
[1770448251357,4.90967651,2036.8,2035.7,0.001]
[1770448251358,1.22723479,2037.1,2035.7,0.001]
[1770448251632,4.90966221,2037.0,2035.7,0.001]
[1770448251810,0.6136897,2036.9,2035.7,0.001]
[1770448252013,4.90966221,2037.0,2035.7,0.001]
[1770448253041,5.2520221,2036.5,2034.7,1.28455979]
[1770448253212,5.2520221,2036.3,2034.7,1.28455213]
[1770448253409,1.22783753,2036.1,2034.8,1.22860265]
[1770448253639,1.22783753,2036.1,2034.7,1.28453161]
[1770448253932,1.22783753,2036.1,2035.0,0.05588493]
[1770448254138,6.47985963,2036.1,2034.4,1.2288142]
[1770448254338,6.47985963,2036.1,2034.3,0.05588493]
[1770448254339,1.13912098,2036.0,2034.3,0.05588493]
[1770448254536,1.13912098,2036.0,2034.6,1.28459272]
[1770448254736,6.47985963,2036.1,2034.7,1.22867135]
[1770448254964,6.47985963,2036.1,2034.7,1.22865486]
[1770448255311,6.47985963,2036.1,2034.3,4.97151696]
[1770448255632,6.47985963,2036.1,2034.4,1.22886354]
[1770448256633,6.47985963,2036.1,2034.6,0.05588493]
[1770448256932,1.13912098,2036.0,2034.4,1.22886354]
[1770448257246,1.13912098,2036.0,2034.5,0.05588493]
[1770448257539,1.13912098,2036.0,2034.5,1.22880051]
[1770448257540,1.22795815,2035.9,2034.5,1.22880051]
[1770448257739,5.3544221,2035.8,2034.3,1.22891914]
[1770448258042,5.3544221,2035.8,2034.5,1.22879553]
[1770448258241,5.2520221,2035.8,2034.5,1.22879553]
[1770448258439,6.20065725,2035.8,2034.6,0.61440208]
[1770448258628,6.20065725,2035.8,2034.4,1.22883582]
[1770448258826,6.20065725,2035.8,2034.5,1.22879289]
[1770448259020,6.20065725,2035.8,2034.5,1.22880111]
[1770448259743,1.22807879,2035.7,2034.6,0.05588493]
[1770448259918,1.22807879,2035.7,2034.3,1.22892395]
[1770448260466,5.2520221,2035.5,2034.2,0.003]
[1770448260741,5.2520221,2035.5,2033.1,0.001]
[1770448260742,5.2520221,2034.7,2033.5,4.91756684]
[1770448260917,5.2520221,2035.2,2033.8,4.91685721]
[1770448261117,5.2520221,2035.2,2033.6,1.72107209]
[1770448261348,5.30790703,2034.8,2033.1,0.001]
[1770448261514,5.3544221,2034.7,2033.2,1.22954357]
[1770448261731,6.48076485,2034.6,2033.1,0.001]
[1770448262331,10.16589478,2035.1,2033.2,0.05588493]
[1770448262618,5.30790703,2035.0,2033.2,0.05588493]
[1770448262824,1.02217797,2034.9,2033.1,0.001]
[1770448263017,1.02217797,2034.9,2033.2,0.05588493]
[1770448263220,6.27420007,2034.9,2033.3,0.001]
[1770448263643,1.22868236,2034.7,2033.3,0.001]
[1770448263849,1.22868236,2034.7,2033.4,0.05588493]
[1770448264157,2.33449648,2034.7,2033.3,0.001]
[1770448264318,7.58651858,2034.7,2033.3,0.001]
[1770448265018,5.2520221,2034.6,2033.3,0.001]
[1770448265822,6.39978925,2034.5,2033.3,0.001]
[1770448266019,1.22880314,2034.5,2033.3,0.001]
[1770448266846,1.22876508,2034.6,2033.4,0.05588493]
[1770448267429,1.22876508,2034.6,2033.3,0.001]
[1770448267630,2.33461598,2034.6,2033.3,0.001]
[1770448268353,1.1058509,2034.6,2033.3,0.001]
[1770448268554,1.5574613,2034.9,2033.6,4.92947082]
[1770448268724,1.5574613,2034.9,2033.9,0.05588493]
[1770448268923,0.32889924,2034.9,2033.9,0.05588493]
[1770448269148,1.2283805,2035.2,2034.3,0.05588493]
[1770448269765,1.22819945,2035.5,2034.4,1.22886354]
[1770448269970,1.22819945,2035.5,2034.5,0.62004419]
[1770448270265,1.22819945,2035.5,2034.2,1.22897946]
[1770448270455,1.22819945,2035.5,2034.3,1.22891211]
[1770448270656,1.22819945,2035.5,2033.9,1.22914604]
[1770448270858,1.22819945,2035.5,2033.7,0.05588493]
[1770448270859,4.91130805,2035.4,2033.7,0.05588493]
[1770448271060,0.05588493,2035.3,2033.7,1.2292505]
[1770448271265,0.61953924,2035.3,2033.8,1.84388242]
[1770448271438,4.91130805,2035.0,2033.3,1.2305267]
[1770448271642,0.2335703,2034.7,2033.3,0.001]
[1770448271838,4.96719298,2034.4,2033.3,0.001]
[1770448272043,4.91130805,2034.4,2033.3,0.001]
[1770448272239,5.01370805,2034.3,2033.3,0.001]
[1770448272459,0.5069593,2034.2,2033.3,0.001]
[1770448272858,5.41826735,2034.2,2033.3,0.001]
[1770448273275,5.41826735,2034.2,2033.1,0.001]
[1770448273675,5.14487835,2034.1,2033.1,0.001]
[1770448273866,1.22910521,2034.0,2033.1,0.001]
[1770448274171,0.63790963,2033.9,2033.1,0.001]
[1770448274869,5.54921768,2033.9,2033.1,0.001]
[1770448275272,1.22910521,2034.0,2033.1,0.001]
[1770448275466,1.22892395,2034.3,2033.1,0.001]
[1770448275667,4.91130805,2034.2,2033.1,0.001]
[1770448275863,1.22916564,2033.9,2033.1,0.001]
[1770448276257,1.22916564,2033.9,2033.5,0.001]
[1770448276459,1.10571362,2033.8,2033.1,0.001]
[1770448276656,1.22892395,2034.3,2033.1,0.001]
[1770448276855,1.22892395,2034.3,2033.3,0.001]
[1770448278076,6.14035283,2034.1,2033.3,0.001]
[1770448279059,1.22904478,2034.1,2033.3,0.001]
[1770448279262,4.91130805,2033.3,2032.2,0.001]
[1770448279578,12.98613177,2033.4,2031.3,0.1286273]
[1770448279579,4.91130805,2032.7,2031.3,0.1286273]
[1770448279885,0.1024,2033.0,2031.3,0.1286273]
[1770448279886,4.96719298,2032.5,2031.3,0.1286273]
[1770448280178,6.14135589,2032.5,2031.3,1.35933749]
[1770448280377,2.33618835,2032.5,2031.3,0.1286273]
[1770448281081,4.91130805,2032.4,2031.3,0.1286273]
[1770448281885,1.23031496,2032.0,2031.3,0.1286273]
[1770448282590,1.23007282,2032.4,2031.3,0.1286273]
[1770448283154,0.1024,2032.3,2031.3,0.1286273]
[1770448283381,0.72767641,2032.3,2031.3,0.1286273]
[1770448283581,5.63898446,2032.3,2031.3,0.1286273]
[1770448284090,1.23019387,2032.2,2031.3,0.1286273]
[1770448285196,1.23019387,2032.2,2030.2,1.23436217]
[1770448285197,0.2335703,2031.9,2030.2,1.23436217]
[1770448285357,0.53031633,2031.9,2030.3,0.6160226]
[1770448285560,0.53031633,2031.9,2030.2,4.92856028]
[1770448285863,0.53031633,2031.9,2030.5,1.23118329]
[1770448286192,1.23043606,2031.8,2030.2,0.003]
[1770448287671,1.23043606,2031.8,2030.3,0.05588493]
[1770448288790,1.10739246,2031.8,2030.3,1.23128593]
[1770448289088,4.92174426,2032.1,2030.3,1.28717086]
[1770448289694,4.97762919,2032.1,2030.3,1.23128593]
[1770448289878,9.88893724,2032.1,2030.3,1.23128593]
[1770448290086,9.83305231,2032.1,2030.5,0.001]
[1770448290287,1.47547966,2032.0,2030.5,0.001]
[1770448290490,1.23219387,2032.3,2030.6,0.05588493]
[1770448290804,1.23219387,2032.3,2030.5,0.001]
[1770448290805,1.23031496,2032.0,2030.5,0.001]
[1770448291384,1.23031496,2032.0,2030.6,0.05588493]
[1770448291588,4.92084647,2032.2,2030.6,4.86471832]
[1770448291790,4.92084647,2032.2,2030.7,0.48657183]
[1770448291996,4.92084647,2032.2,2030.9,0.05588493]
[1770448292391,1.23216273,2032.3,2030.9,4.86471832]
[1770448292592,1.23216273,2032.3,2031.2,0.05588493]
[1770448292794,1.23216273,2032.3,2030.9,4.86471832]
[1770448292990,0.002,2032.3,2031.0,1.71739255]
[1770448293915,0.002,2032.3,2031.2,4.86471832]
[1770448294377,0.002,2032.3,2031.5,4.86471832]
[1770448294897,0.002,2032.5,2031.6,1.23055719]
[1770448295100,0.002,2032.5,2031.5,1.23061302]
[1770448295599,0.002,2032.5,2031.6,0.61530841]
[1770448295786,0.002,2032.5,2031.4,1.23066868]
[1770448295987,0.002,2032.5,2031.1,1.23082089]
[1770448296191,0.002,2032.5,2030.7,0.48657183]
[1770448296383,0.002,2032.5,2031.2,1.23076828]
[1770448296578,0.002,2032.5,2031.1,1.23081988]
[1770448296904,1.2320123,2032.5,2031.2,1.84619245]
[1770448297106,1.2320123,2032.5,2031.2,1.90207738]
[1770448297277,1.2320123,2032.5,2031.2,1.84619519]
[1770448297673,1.2320123,2032.5,2031.2,1.90208012]
[1770448297878,0.002,2032.5,2031.3,4.91385414]
[1770448298077,0.002,2032.5,2031.4,0.68159343]
[1770448298578,0.002,2032.5,2031.2,1.90208012]
[1770448298579,0.002,2032.5,2031.2,1.84623163]
[1770448299974,0.002,2032.5,2031.2,0.61543258]
[1770448300169,0.002,2032.5,2031.2,1.84622847]
[1770448300575,0.002,2032.5,2031.2,0.61543258]
[1770448300800,0.002,2032.5,2031.1,1.2308513]
[1770448300998,0.002,2032.5,2031.0,4.92368105]
[1770448301205,0.002,2032.5,2030.9,1.28684732]
[1770448302385,0.002,2032.5,2031.0,4.91385414]
[1770448302578,0.002,2032.5,2031.2,0.05588493]
[1770448302778,0.002,2032.5,2030.9,1.28684732]
[1770448303074,1.23007282,2032.4,2030.7,1.71766867]
[1770448303274,6.24743246,2032.3,2030.8,1.16120563]
[1770448303481,6.24743246,2032.3,2031.4,0.001]
[1770448303703,6.24943246,2032.3,2031.4,0.001]
[1770448304094,0.002,2032.3,2031.4,0.001]
[1770448304577,5.12217823,2032.3,2031.4,0.001]
[1770448304778,5.17806316,2032.3,2031.4,0.001]
[1770448304981,5.12217823,2032.3,2031.4,0.001]
[1770448305197,1.23019387,2032.2,2031.2,0.001]
[1770448305494,2.84958618,2032.2,2031.2,0.001]
[1770448306418,2.84958618,2032.2,2030.5,1.23220453]
[1770448306634,2.84958618,2032.2,2030.7,1.23110257]
[1770448306784,1.23019387,2032.2,2030.9,4.91385414]
[1770448307204,0.002,2032.3,2030.9,4.91385414]
[1770448307384,0.002,2032.3,2031.0,4.96973907]
[1770448307586,0.002,2032.3,2030.9,1.23097245]
[1770448307810,0.002,2032.3,2030.9,1.23098036]
[1770448307980,0.002,2032.3,2030.9,1.23097805]
[1770448308186,0.002,2032.3,2031.0,0.05588493]
[1770448308402,0.002,2032.3,2031.0,6.08222699]
[1770448308807,0.002,2032.3,2031.0,1.11248792]
[1770448309006,0.002,2032.3,2030.9,1.23097805]
[1770448309219,0.002,2032.3,2031.0,0.05588493]
[1770448311218,0.002,2032.3,2031.1,6.14471426]
[1770448311718,0.002,2032.3,2031.3,0.05588493]
[1770448312605,0.002,2032.3,2031.1,6.14471426]
[1770448312805,0.002,2032.3,2031.2,0.62005992]
[1770448313695,0.002,2032.3,2031.3,1.23073893]
[1770448313892,0.002,2032.3,2031.2,1.85081865]
[1770448314088,0.002,2032.3,2031.2,0.62005992]
[1770448314509,0.002,2032.3,2031.0,1.23088583]
[1770448314714,0.002,2032.3,2031.0,1.23092048]
[1770448314924,0.002,2032.3,2031.1,1.2308476]
[1770448315111,0.002,2032.3,2031.2,1.23079892]